bitfinex/quotes_SOLUSD_20260115
["timestamp","ask_amount","ask_price","bid_price","bid_amount"]
[1768456674999,19.64487731,144.39,144.35,0.71778483]
[1768456676509,23.67155468,144.39,144.35,0.71778483]
[1768456677706,11.05155468,144.39,144.35,0.71778483]
[1768456678093,6.92587731,144.39,144.35,0.71778483]
[1768456680212,7.02487731,144.39,144.35,0.71778483]
[1768456686084,12.62,144.4,144.36,0.71778483]
[1768456686413,17.11993458,144.42,144.36,4.02667737]
[1768456687108,6.92501217,144.41,144.37,4.02667737]
[1768456687890,7.05042976,144.41,144.34,6.92808646]
[1768456688090,11.07710713,144.41,144.35,4.02667737]
[1768456688393,11.07710713,144.41,144.36,0.71778483]
[1768456689516,7.05042976,144.41,144.37,0.71778483]
[1768456698098,19.54444221,144.42,144.38,0.71778483]
[1768456698299,19.67314218,144.42,144.38,0.68778486]
[1768456699406,0.49622923,144.41,144.38,0.68778486]
[1768456699904,7.42101588,144.41,144.38,0.68778486]
[1768456706923,0.10434902,144.44,144.4,0.65867314]
[1768456708229,0.71959694,144.44,144.42,0.65867314]
[1768456712320,7.64192838,144.46,144.42,0.65867314]
[1768456712524,11.66860575,144.46,144.42,0.62867315]
[1768456712736,0.65869122,144.45,144.42,0.62867315]
[1768456713331,7.58156165,144.45,144.42,0.62867315]
[1768456714637,0.71898788,144.44,144.4,0.65867314]
[1768456715534,7.64236473,144.44,144.4,0.65867314]
[1768456715838,2.57451715,144.43,144.39,0.65867314]
[1768456716137,0.71959694,144.43,144.39,0.65867314]
[1768456716539,0.71959694,144.43,144.4,0.65867314]
[1768456717941,0.71959694,144.43,144.4,0.62867315]
[1768456718315,0.68839121,144.42,144.37,6.92647816]
[1768456718825,0.68839121,144.42,144.38,2.57451715]
[1768456719732,0.68839121,144.42,144.39,0.65867314]
[1768456720633,7.6126957,144.42,144.39,0.65867314]
[1768456721021,10.18721285,144.42,144.39,0.65867314]
[1768456721228,7.6126957,144.42,144.39,0.65867314]
[1768456721940,0.71928488,144.41,144.38,0.65867314]
[1768456722119,7.64408042,144.41,144.38,0.65867314]
[1768456722940,7.64402037,144.42,144.39,0.65867314]
[1768456723240,0.71959694,144.43,144.4,0.65867314]
[1768456725342,0.71959694,144.44,144.4,0.65867314]
[1768456725534,12.62,144.45,144.41,3.23319029]
[1768456725741,12.62,144.45,144.42,0.65867314]
[1768456726442,10.21658946,144.46,144.42,0.65867314]
[1768456726648,0.71959694,144.46,144.42,0.65867314]
[1768456727740,9.49668535,144.47,144.42,0.65867314]
[1768456728042,6.9221682,144.47,144.43,0.65867314]
[1768456728245,10.28445581,144.48,144.43,0.65867314]
[1768456729144,0.71928488,144.47,144.43,0.65867314]
[1768456729339,10.21569322,144.47,144.43,0.65867314]
[1768456730238,0.68900294,144.44,144.4,7.58346342]
[1768456730544,0.68900294,144.44,144.41,0.70285258]
[1768456730742,0.68900294,144.44,144.41,7.62757767]
[1768456733744,7.61362853,144.46,144.42,0.70285258]
[1768456735346,10.18814568,144.46,144.42,0.70285258]
[1768456735547,0.6912268,144.45,144.42,0.70285258]
[1768456736636,10.18814568,144.46,144.42,0.70285258]
[1768456738164,7.61362853,144.46,144.42,0.70285258]
[1768456738356,10.18814568,144.46,144.42,0.70285258]
[1768456739540,7.61362853,144.46,144.42,0.70285258]
[1768456743863,7.61362853,144.46,144.43,0.70285258]
[1768456744565,0.7912268,144.48,144.45,0.70285258]
[1768456747768,0.6912268,144.47,144.44,0.70285258]
[1768456747946,0.6912268,144.47,144.43,0.70285258]
[1768456748465,0.6912268,144.46,144.43,0.70285258]
[1768456748667,0.6912268,144.45,144.42,0.70285258]
[1768456754264,0.6912268,144.44,144.41,0.70285258]
[1768456754664,3.26574395,144.43,144.4,0.70285258]
[1768456754854,0.6912268,144.43,144.4,0.70285258]
[1768456766866,0.6912268,144.43,144.4,3.27736973]
[1768456769199,0.66395365,144.44,144.41,0.65469904]
[1768456772419,6.9224067,144.46,144.43,3.22921619]
[1768456772696,7.58586157,144.47,144.44,0.62469905]
[1768456773700,7.58586157,144.47,144.44,0.59469905]
[1768456776997,0.66395365,144.46,144.43,0.65469904]
[1768456784049,0.1,144.48,144.46,0.65469904]
[1768456784207,0.1,144.48,144.45,0.65469904]
[1768456784409,0.03999994,144.48,144.46,0.65469904]
[1768456784721,0.1,144.49,144.46,0.65469904]
[1768456784722,7.02092125,144.49,144.46,0.65469904]
[1768456784934,7.02092125,144.49,144.44,0.65469904]
[1768456785112,4.02154521,144.48,144.44,0.65469904]
[1768456785441,0.66395365,144.47,144.43,0.65469904]
[1768456785613,0.66395365,144.47,144.43,4.67624425]
[1768456786513,0.66395365,144.47,144.44,0.65469904]
[1768456787808,0.66395365,144.47,144.43,4.67624425]
[1768456788743,12.72,144.49,144.45,0.65469904]
[1768456789053,0.66395365,144.48,144.44,0.65469904]
[1768456789228,0.66395365,144.48,144.44,4.67624425]
[1768456789411,0.66395365,144.48,144.44,0.65469904]
[1768456789612,0.66395365,144.47,144.44,0.65469904]
[1768456791210,0.72409933,144.46,144.43,0.66016864]
[1768456791430,0.72409933,144.46,144.42,13.28016864]
[1768456791634,0.72409933,144.46,144.42,0.66016864]
[1768456792850,7.64663145,144.46,144.42,0.66016864]
[1768456793050,0.72409933,144.45,144.42,0.66016864]
[1768456793716,0.72409933,144.45,144.41,4.68171385]
[1768456793942,0.72409933,144.45,144.41,0.66016864]
[1768456794525,0.72409933,144.45,144.41,4.68171385]
[1768456795322,6.9228924,144.45,144.41,0.66016864]
[1768456795525,0.72409933,144.44,144.41,0.66016864]
[1768456796363,4.74564454,144.44,144.4,0.66016864]
[1768456796554,0.72409933,144.44,144.4,0.66016864]
[1768456799480,4.74564454,144.44,144.4,0.66016864]
[1768456799952,0.72409933,144.43,144.4,0.66016864]
[1768456800152,0.72409933,144.41,144.38,0.66016864]
[1768456800670,0.72409933,144.4,144.37,0.66016864]
[1768456800866,0.69742555,144.4,144.37,0.66016864]
[1768456806588,0.72409933,144.39,144.36,4.68171385]
[1768456806752,0.72409933,144.39,144.34,12.62]
[1768456806753,0.72409933,144.39,144.35,0.66016864]
[1768456807654,0.69051975,144.38,144.34,4.68171385]
[1768456808168,0.69051975,144.38,144.34,0.66016864]
[1768456811062,0.69051975,144.38,144.35,0.66016864]
[1768456812180,0.72409933,144.41,144.37,0.66016864]
[1768456813261,0.69051975,144.4,144.37,0.66016864]
[1768456814978,7.64895978,144.41,144.37,0.66016864]
[1768456815181,0.72409933,144.41,144.37,0.66016864]
[1768456815386,20.26864063,144.42,144.38,0.66016864]
[1768456815763,0.69051975,144.41,144.38,0.66016864]
[1768456821284,7.60952811,144.46,144.41,0.68346443]
[1768456821488,0.68719667,144.45,144.41,4.70500964]
[1768456822465,0.68719667,144.45,144.42,0.70639759]
[1768456822789,7.612494,144.46,144.43,0.70639759]
[1768456823576,0.69016256,144.46,144.43,0.70639759]
[1768456823786,0.69016256,144.46,144.43,4.7279428]
[1768456824872,0.69016256,144.46,144.39,12.62]
[1768456824873,0.69016256,144.47,144.44,4.7279428]
[1768456832294,0.69016256,144.47,144.44,0.70639759]
[1768456832491,0.69016256,144.47,144.44,4.7279428]
[1768456835083,7.61209959,144.47,144.44,4.7279428]
[1768456835285,7.61209959,144.47,144.44,0.70639759]
[1768456836099,7.61209959,144.47,144.44,3.28006614]
[1768456836798,0.69016256,144.46,144.42,3.28006614]
[1768456836979,0.69016256,144.46,144.44,2.57366855]
[1768456837479,0.69016256,144.46,144.44,3.28006614]
[1768456839497,0.69016256,144.46,144.44,2.57366855]
[1768456839998,0.69016256,144.46,144.43,3.28006614]
[1768456840899,0.69016256,144.46,144.43,0.70639759]
[1768456841098,0.69016256,144.46,144.43,3.28006614]
[1768456842100,0.69016256,144.46,144.44,2.57366855]
[1768456842276,6.92206422,144.47,144.45,2.57366855]
[1768456842479,7.61222678,144.47,144.45,2.57366855]
[1768456842689,7.61222678,144.47,144.44,3.28006614]
[1768456842908,0.69016256,144.46,144.44,0.70639759]
[1768456843410,0.69016256,144.46,144.44,2.57366855]
[1768456843781,0.69016256,144.46,144.43,0.70639759]
[1768456843982,0.69016256,144.46,144.44,2.57366855]
[1768456846997,0.69016256,144.46,144.43,0.70639759]
[1768456847391,0.69016256,144.46,144.43,3.28006614]
[1768456849707,0.69016256,144.47,144.44,0.70639759]
[1768456849909,0.69016256,144.47,144.44,3.28006614]
[1768456854604,0.69016256,144.47,144.44,2.57366855]
[1768456855709,0.69016256,144.47,144.43,3.26668511]
[1768456856004,0.6630059,144.46,144.43,3.26668511]
[1768456858007,0.6630059,144.46,144.43,0.69301656]
[1768456858208,0.6630059,144.46,144.42,10.19049523]
[1768456858409,0.6630059,144.46,144.43,0.69301656]
[1768456859610,0.6630059,144.46,144.43,3.26668511]
[1768456860522,0.6630059,144.47,144.44,3.26668511]
[1768456860692,0.6630059,144.47,144.45,2.57366855]
[1768456861514,0.6630059,144.47,144.45,3.26668511]
[1768456861891,0.6630059,144.47,144.45,0.69301656]
[1768456863796,0.6630059,144.47,144.44,0.69301656]
[1768456866201,0.6630059,144.47,144.43,0.69301656]
[1768456866813,0.6630059,144.46,144.42,0.69301656]
[1768456868119,0.6630059,144.45,144.41,0.69301656]
[1768456869320,0.6630059,144.43,144.4,0.69301656]
[1768456870398,0.6630059,144.44,144.41,0.69301656]
[1768456870600,7.58590638,144.45,144.42,0.69301656]
[1768456871001,6.92290048,144.45,144.43,0.69301656]
[1768456871319,13.2830059,144.46,144.43,3.26668511]
[1768456872330,0.6630059,144.46,144.43,3.26668511]
[1768456872526,0.6630059,144.47,144.44,0.69301656]
[1768456872721,5.18105965,144.46,144.44,0.69301656]
[1768456873037,0.6630059,144.47,144.44,0.69301656]
[1768456873238,5.18096524,144.46,144.44,3.26668511]
[1768456873536,0.6630059,144.47,144.44,3.26668511]
[1768456876137,0.6630059,144.47,144.45,0.69301656]
[1768456876440,0.6630059,144.47,144.44,2.57366855]
[1768456878328,0.6630059,144.47,144.44,3.26668511]
[1768456878534,7.58492254,144.47,144.44,3.26668511]
[1768456879140,20.30406019,144.49,144.45,0.69301656]
[1768456879342,5.18015217,144.48,144.47,0.69301656]
[1768456879526,12.72,144.49,144.46,2.57366855]
[1768456879527,13.3830059,144.49,144.46,2.57366855]
[1768456880421,20.30391015,144.49,144.46,2.57366855]
[1768456881529,20.30391015,144.49,144.46,3.23388793]
[1768456885124,12.72,144.49,144.47,0.72204458]
[1768456885323,12.72,144.49,144.47,3.29571313]
[1768456885543,0.1,144.49,144.47,3.29571313]
[1768456886347,0.1,144.49,144.47,0.72204458]
[1768456889849,0.1,144.49,144.48,0.72204458]
[1768456891047,0.1,144.51,144.49,0.72204458]
[1768456891624,0.1,144.51,144.49,3.29571313]
[1768456891953,7.74369444,144.53,144.5,3.29571313]
[1768456892247,7.74369444,144.53,144.5,0.72204458]
[1768456893745,0.1,144.53,144.51,0.72204458]
[1768456893922,0.1,144.53,144.51,3.29571313]
[1768456895229,0.1,144.53,144.52,0.72204458]
[1768456895531,0.1,144.53,144.52,0.69538148]
[1768456897839,0.1,144.53,144.52,4.71212476]
[1768456898232,0.1,144.54,144.52,4.71212476]
[1768456898426,0.1,144.54,144.52,0.69538148]
[1768456898834,0.82468999,144.54,144.52,0.69538148]
[1768456899347,0.82468999,144.54,144.51,4.01674328]
[1768456899549,0.82468999,144.54,144.51,4.73878786]
[1768456900748,0.82468999,144.54,144.51,0.72204458]
[1768456901855,0.72468999,144.53,144.5,0.72204458]
[1768456902243,0.72468999,144.53,144.5,4.73878786]
[1768456902650,7.74327068,144.54,144.51,0.72204458]
[1768456902850,0.82468999,144.54,144.51,0.72204458]
[1768456906266,0.72468999,144.53,144.49,4.01674328]
[1768456906558,0.72468999,144.53,144.49,4.73878786]
[1768456907056,0.72468999,144.51,144.48,0.72204458]
[1768456907443,0.72468999,144.51,144.48,4.73878786]
[1768456908452,0.72468999,144.51,144.49,0.72204458]
[1768456911063,0.72468999,144.51,144.48,4.01674328]
[1768456911064,0.72468999,144.51,144.48,0.72332793]
[1768456911364,0.72468999,144.51,144.49,0.72332793]
[1768456913071,0.72468999,144.51,144.49,4.74007121]
[1768456913871,0.72468999,144.51,144.49,0.72332793]
[1768456914564,0.69260316,144.52,144.49,4.74007121]
[1768456915969,0.69260316,144.52,144.49,0.72332793]
[1768456916177,0.69260316,144.52,144.49,4.74007121]
[1768456919870,0.69260316,144.52,144.49,0.72332793]
[1768456924974,0.69260316,144.51,144.49,0.72332793]
[1768456925159,0.69260316,144.51,144.48,4.01674328]
[1768456925160,0.69260316,144.51,144.48,0.72332793]
[1768456926778,7.61217372,144.52,144.49,0.72332793]
[1768456926962,4.01674328,144.53,144.5,0.72332793]
[1768456926963,0.69260316,144.53,144.5,0.72332793]
[1768456932286,0.69260316,144.52,144.5,0.72332793]
[1768456939875,0.69260316,144.51,144.47,0.72332793]
[1768456940099,0.69260316,144.51,144.48,0.72332793]
[1768456940300,0.69260316,144.51,144.49,0.72332793]
[1768456941397,7.61228176,144.52,144.49,0.72332793]
[1768456947386,0.68910197,144.51,144.47,11.63710036]
[1768456947598,0.68910197,144.51,144.48,0.6985475]
[1768456953616,0.68910197,144.51,144.48,4.71529078]
[1768456954200,0.68910197,144.5,144.48,0.6985475]
[1768456954703,0.68910197,144.49,144.45,4.71529078]
[1768456954908,0.68910197,144.46,144.43,0.6985475]
[1768456955100,0.62910198,144.46,144.43,0.6985475]
[1768456955291,4.01674328,144.48,144.44,0.6985475]
[1768456955489,6.92185228,144.47,144.44,0.6985475]
[1768456956403,10.93859556,144.47,144.44,0.6985475]
[1768456956713,4.01674328,144.46,144.42,0.6985475]
[1768456957096,0.68910197,144.45,144.42,0.6985475]
[1768456957603,0.68910197,144.46,144.42,0.6985475]
[1768456958191,0.68910197,144.45,144.42,0.6985475]
[1768456960422,0.68910197,144.44,144.42,0.6985475]
[1768456961933,0.68910197,144.45,144.42,2.57436353]
[1768456962132,0.68910197,144.46,144.43,3.27291103]
[1768456962642,7.61057506,144.48,144.45,0.6985475]
[1768456963344,0.68910197,144.47,144.44,3.27291103]
[1768456963947,0.68910197,144.47,144.45,0.6985475]
[1768456964240,7.61057506,144.48,144.45,0.6985475]
[1768456964824,7.61017284,144.49,144.45,0.6985475]
[1768456965028,0.68910197,144.49,144.45,0.6985475]
[1768456969650,22.11511924,144.5,144.45,3.27291103]
[1768456969957,22.80422121,144.5,144.46,0.6985475]
[1768456970162,20.22985768,144.5,144.46,0.6985475]
[1768456970540,22.80422121,144.5,144.46,0.6985475]
[1768456970930,0.65765095,144.49,144.46,0.6985475]
[1768456971660,0.65765095,144.49,144.44,6.92323316]
[1768456971661,0.65765095,144.48,144.44,9.49759669]
[1768456971866,0.65765095,144.48,144.45,0.71347625]
[1768456972057,0.65765095,144.48,144.43,2.57436353]
[1768456972058,0.65765095,144.48,144.44,0.71347625]
[1768456972440,0.65765095,144.47,144.43,0.71347625]
[1768456973042,0.65765095,144.46,144.42,3.28783978]
[1768456973348,0.59765096,144.45,144.42,3.28783978]
[1768456973547,0.53765097,144.45,144.42,3.28783978]
[1768456973755,9.49658092,144.47,144.43,0.71347625]
[1768456974546,6.92221739,144.47,144.43,0.71347625]
[1768456975467,0.65765095,144.46,144.43,0.71347625]
[1768456980318,7.57986834,144.47,144.43,0.71347625]
[1768456980483,0.65765095,144.49,144.45,0.71347625]
[1768456980665,0.65765095,144.49,144.46,0.71347625]
[1768456984995,10.15249733,144.5,144.46,0.71347625]
[1768456985194,7.5781338,144.5,144.46,0.71347625]
[1768456985702,7.5781338,144.5,144.47,0.71347625]
[1768456985703,0.65765095,144.5,144.47,0.71347625]
[1768456986074,3.23201448,144.49,144.45,0.71347625]
[1768456987000,2.57436353,144.49,144.45,0.71347625]
[1768456987199,0.65765095,144.48,144.43,10.21145606]
[1768456987500,0.65765095,144.46,144.43,6.92361628]
[1768456987812,0.65765095,144.46,144.43,7.63709253]
[1768456987981,15.85201448,144.48,144.44,0.71347625]
[1768456988799,0.65765095,144.47,144.44,0.71347625]
[1768456989096,7.5782291,144.5,144.45,0.71347625]
[1768456989269,10.15259263,144.5,144.45,0.71347625]
[1768456989588,10.15259263,144.5,144.46,0.71347625]
[1768456989783,0.65765095,144.49,144.46,0.71347625]
[1768456990700,0.65765095,144.5,144.46,0.71347625]
[1768456991498,0.65765095,144.51,144.48,0.71347625]
[1768456992706,7.5771528,144.52,144.48,0.71347625]
[1768456992909,0.65765095,144.51,144.46,3.28783978]
[1768456993083,3.23201448,144.51,144.46,0.71347625]
[1768456993286,10.15204745,144.51,144.47,0.71347625]
[1768456993518,0.65765095,144.5,144.47,0.71347625]
[1768456994007,3.23201448,144.49,144.45,0.71347625]
[1768456995816,10.1530148,144.49,144.45,0.71347625]
[1768456996109,0.65765095,144.48,144.45,0.71347625]
[1768456996406,3.23201448,144.48,144.45,0.71347625]
[1768456996707,3.23201448,144.48,144.44,0.71347625]
[1768456996912,3.23201448,144.48,144.42,0.71347625]
[1768456996913,3.23201448,144.46,144.42,0.71347625]
[1768456997585,0.65765095,144.46,144.42,0.71347625]
[1768457000414,0.65765095,144.46,144.43,0.71347625]
[1768457000617,0.66721068,144.45,144.41,10.22102018]
[1768457001002,0.66721068,144.45,144.42,0.72221355]
[1768457003825,0.71845698,144.46,144.42,0.72221355]
[1768457004121,3.29282051,144.46,144.42,0.72221355]
[1768457005536,10.21522059,144.46,144.42,0.72221355]
[1768457005830,0.60701271,144.45,144.42,0.72221355]
[1768457006011,0.54701272,144.45,144.42,0.72221355]
[1768457009826,0.48701273,144.45,144.42,0.72221355]
[1768457011503,9.49636871,144.47,144.42,0.72221355]
[1768457011708,0.71845698,144.46,144.42,0.72221355]
[1768457012430,0.71845698,144.46,144.43,0.65266561]
[1768457012932,12.62,144.48,144.45,0.65266561]
[1768457013106,15.19436353,144.5,144.45,0.65266561]
[1768457013430,5.17383723,144.49,144.45,0.65266561]
[1768457013604,5.17383723,144.48,144.45,0.65266561]
[1768457013810,2.57436353,144.49,144.45,0.65266561]
[1768457014028,5.17383533,144.48,144.45,0.65266561]
[1768457014210,19.54041522,144.5,144.45,0.65266561]
[1768457014411,14.6691283,144.49,144.45,0.65266561]
[1768457014610,9.49544159,144.49,144.45,0.65266561]
[1768457014806,0.71845698,144.48,144.45,0.65266561]
[1768457015646,0.71845698,144.51,144.48,0.65266561]
[1768457015947,13.33845698,144.53,144.49,0.65266561]
[1768457016322,13.33845698,144.53,144.5,0.65266561]
[1768457016717,13.33845698,144.53,144.5,3.22702914]
[1768457017034,0.1,144.54,144.52,0.65266561]
[1768457017540,0.1,144.54,144.51,4.66963213]
[1768457018338,0.35061277,144.54,144.51,0.65266561]
[1768457018523,7.26920686,144.54,144.51,0.65266561]
[1768457018834,0.35061277,144.54,144.51,0.65266561]
[1768457019022,0.1,144.54,144.51,0.65266561]
[1768457019936,0.1,144.54,144.51,4.66963213]
[1768457020636,0.1,144.54,144.52,0.65266561]
[1768457026436,0.1,144.54,144.51,4.01696652]
[1768457026613,0.1,144.54,144.51,4.66963213]
[1768457026818,0.04,144.54,144.51,4.66963213]
[1768457027960,0.04,144.54,144.52,0.65266561]
[1768457028242,6.91808821,144.55,144.53,0.65266561]
[1768457029143,6.91808821,144.55,144.52,4.66963213]
[1768457029817,7.46570093,144.55,144.52,0.65266561]
[1768457030525,0.67878089,144.54,144.51,4.01696652]
[1768457030731,0.67878089,144.54,144.51,0.70742043]
[1768457032130,7.5973861,144.54,144.51,4.72438695]
[1768457032441,6.91860521,144.54,144.51,4.72438695]
[1768457033150,7.50549726,144.54,144.51,4.72438695]
[1768457035341,7.50549726,144.54,144.51,0.70742043]
[1768457035643,7.50549726,144.54,144.47,12.62]
[1768457035644,0.677862,144.53,144.49,4.72438695]
[1768457035830,0.58780175,144.52,144.49,0.70742043]
[1768457038347,7.50743048,144.52,144.49,0.70742043]
[1768457038532,4.69574741,144.51,144.47,0.70742043]
[1768457038732,0.67878089,144.51,144.47,0.70742043]
[1768457039071,0.67878089,144.52,144.49,0.70742043]
[1768457039229,7.5977636,144.53,144.5,0.70742043]
[1768457039738,7.53776361,144.53,144.5,0.70742043]
[1768457040643,7.47776362,144.53,144.5,0.70742043]
[1768457041522,6.79898273,144.53,144.5,4.72438695]
[1768457041754,7.47684473,144.53,144.5,0.70742043]
[1768457042052,7.47684473,144.53,144.49,4.01696652]
[1768457042053,0.58780175,144.52,144.49,0.70742043]
[1768457042253,7.47776362,144.53,144.5,0.70742043]
[1768457042749,0.67878089,144.53,144.5,4.72438695]
[1768457043330,12.62,144.54,144.52,0.70742043]
[1768457043536,7.59691484,144.55,144.52,0.70742043]
[1768457043735,7.59691484,144.55,144.51,4.72438695]
[1768457044042,0.58689205,144.54,144.51,0.70742043]
[1768457044262,7.59691484,144.55,144.51,0.70742043]
[1768457045757,0.677862,144.53,144.49,4.72438695]
[1768457045965,0.677862,144.53,144.5,0.70742043]
[1768457046141,0.6769614,144.51,144.48,0.70742043]
[1768457046341,0.6502894,144.51,144.48,0.70742043]
[1768457046936,0.61696141,144.51,144.48,0.70742043]
[1768457047144,0.59028942,144.51,144.48,0.70742043]
[1768457047342,0.55696143,144.51,144.48,0.70742043]
[1768457047530,10.93619614,144.53,144.49,0.70742043]
[1768457048333,6.91922962,144.53,144.49,0.70742043]
[1768457049434,7.59801051,144.53,144.49,0.70742043]
[1768457049635,7.59801051,144.53,144.49,4.72438695]
[1768457049859,7.59801051,144.53,144.5,0.70742043]
[1768457050247,7.59801051,144.53,144.49,0.70742043]
[1768457051343,0.34929211,144.52,144.49,0.70742043]
[1768457053757,0.28929212,144.52,144.49,0.70742043]
[1768457055273,6.91954563,144.52,144.48,0.70742043]
[1768457055567,6.91954563,144.52,144.48,4.72438695]
[1768457055745,7.59832652,144.52,144.48,4.72438695]
[1768457056272,7.59832652,144.52,144.49,0.70742043]
[1768457056450,6.91898931,144.53,144.5,0.70742043]
[1768457056770,13.29878089,144.54,144.51,4.72438695]
[1768457056966,12.62,144.54,144.51,0.70742043]
[1768457057468,0.674298,144.53,144.5,0.70742043]
[1768457059369,7.59334968,144.53,144.5,0.70742043]
[1768457059557,7.59334968,144.53,144.49,0.70742043]
[1768457059558,0.23493019,144.52,144.49,0.70742043]
[1768457060269,0.1749302,144.52,144.49,0.70742043]
[1768457060883,19.53868931,144.54,144.5,0.68894793]
[1768457061095,19.53868931,144.54,144.5,4.70591445]
[1768457062488,20.25803091,144.54,144.5,4.70591445]
[1768457062653,13.3393416,144.54,144.51,0.66854533]
[1768457063664,12.62,144.54,144.51,0.66854533]
[1768457064276,7.63067895,144.55,144.51,0.66854533]
[1768457064570,5.17497615,144.54,144.51,0.66854533]
[1768457064778,0.07828485,144.54,144.51,0.66854533]
[1768457068974,0.07828485,144.54,144.5,0.66854533]
[1768457070578,0.07828485,144.54,144.51,0.66854533]
[1768457074884,0.08456383,144.52,144.49,0.66854533]
[1768457077360,7.63150439,144.53,144.49,0.66854533]
[1768457078177,0.07828485,144.52,144.49,0.66854533]
[1768457082067,10.20332227,144.53,144.49,0.66854533]
[1768457082989,0.71252564,144.53,144.49,0.66854533]
[1768457083295,22.82304663,144.54,144.5,0.66854533]
[1768457083598,5.25762039,144.53,144.5,0.66854533]
[1768457083888,0.07828485,144.53,144.5,0.66854533]
[1768457087095,6.91870311,144.54,144.51,0.66854533]
[1768457089303,7.23458791,144.54,144.51,0.66854533]
[1768457091205,6.91870311,144.54,144.51,0.66854533]
[1768457095212,0.37013037,144.54,144.51,0.66854533]
[1768457096311,0.65485612,144.53,144.5,0.71983809]
[1768457098318,7.57659675,144.54,144.5,0.71983809]
[1768457099314,7.57659675,144.54,144.5,3.29165597]
[1768457099615,7.57659675,144.54,144.51,0.71983809]
[1768457102422,0.65773213,144.54,144.51,0.71983809]
[1768457103416,7.67542596,144.56,144.52,0.71983809]
[1768457103722,5.55006177,144.55,144.52,0.71983809]
[1768457103919,0.37013037,144.55,144.52,0.71983809]
[1768457104907,7.28816302,144.55,144.52,0.71983809]
[1768457106216,0.65485612,144.54,144.51,0.71983809]
[1768457108799,0.37297762,144.53,144.5,0.71983809]
[1768457109006,0.65203734,144.52,144.49,0.71983809]
[1768457111017,0.37576822,144.51,144.48,0.71983809]
[1768457111809,0.64927465,144.5,144.46,0.71983809]
[1768457112006,0.64927465,144.5,144.46,3.29165597]
[1768457112210,0.64927465,144.5,144.47,0.71983809]
[1768457113120,0.65773213,144.51,144.48,0.71983809]
[1768457113334,0.65773213,144.52,144.49,0.71983809]
[1768457113634,7.57671088,144.53,144.49,0.71983809]
[1768457113931,19.53866438,144.54,144.52,0.71983809]
[1768457114103,0.65773213,144.55,144.52,0.71983809]
[1768457114823,0.65773213,144.55,144.52,3.29165597]
[1768457115026,0.65773213,144.55,144.52,0.71983809]
[1768457116131,7.57581614,144.55,144.51,3.29165597]
[1768457116329,7.57581614,144.55,144.52,0.71983809]
[1768457117846,7.57581614,144.55,144.52,3.29165597]
[1768457118020,7.57581614,144.55,144.52,0.71983809]
[1768457118218,7.57581614,144.55,144.52,3.29165597]
[1768457118515,0.37013037,144.54,144.51,3.29165597]
[1768457119747,0.37013037,144.54,144.51,0.71983809]
[1768457120038,0.37013037,144.54,144.51,3.29165597]
[1768457122745,7.58100057,144.55,144.52,0.7090464]
[1768457126053,6.91808401,144.55,144.52,3.28086428]
[1768457126225,0.1,144.56,144.54,3.28086428]
[1768457126638,0.1,144.56,144.55,0.7090464]
[1768457127536,5.27348311,144.56,144.53,0.7090464]
[1768457127854,5.17348311,144.55,144.54,2.57181788]
[1768457128257,5.17348311,144.55,144.54,3.28086428]
[1768457128444,0.03695273,144.55,144.54,3.28086428]
[1768457128840,0.5988801,144.55,144.52,0.7090464]
[1768457129039,7.47996713,144.55,144.52,3.28086428]
[1768457129364,7.47996713,144.55,144.52,0.7090464]
[1768457129562,6.91803976,144.55,144.52,3.28086428]
[1768457130134,6.91803976,144.55,144.52,0.7090464]
[1768457130356,7.01703976,144.55,144.52,0.7090464]
[1768457131755,7.01703976,144.55,144.51,2.57181788]
[1768457131756,9.58885764,144.55,144.51,0.7090464]
[1768457131960,0.56192737,144.54,144.51,0.7090464]
[1768457133347,7.48464317,144.55,144.52,0.7090464]
[1768457133774,19.63769965,144.56,144.53,0.7090464]
[1768457134072,12.72,144.56,144.54,0.7090464]
[1768457135064,0.1,144.56,144.54,0.7090464]
[1768457136167,0.1,144.56,144.53,0.7090464]
[1768457136358,0.199,144.56,144.53,0.7090464]
[1768457136559,0.199,144.56,144.53,3.28086428]
[1768457136762,0.1,144.56,144.54,0.7090464]
[1768457136960,0.1,144.56,144.54,0.6790464]
[1768457137444,0.1,144.56,144.53,2.57181788]
[1768457138171,0.2287,144.56,144.53,2.57181788]
[1768457138547,7.01766532,144.56,144.52,2.57181788]
[1768457138946,7.01766532,144.56,144.53,0.7090464]
[1768457139369,7.11666532,144.56,144.53,0.7090464]
[1768457139572,7.11666532,144.56,144.53,0.6790464]
[1768457140562,5.17281086,144.55,144.53,0.6790464]
[1768457140869,5.17281086,144.54,144.53,0.6790464]
[1768457142382,5.17281086,144.54,144.52,4.72530614]
[1768457142677,5.1729099,144.53,144.52,4.01625974]
[1768457143161,5.1729099,144.53,144.51,4.72530614]
[1768457143362,7.54467991,144.55,144.52,0.7090464]
[1768457143564,5.27208506,144.54,144.51,0.7090464]
[1768457143755,5.17312258,144.53,144.51,0.7090464]
[1768457144071,0.099,144.54,144.51,0.7090464]
[1768457144375,5.1734079,144.53,144.51,0.7090464]
[1768457144581,0.099,144.54,144.51,0.7090464]
[1768457144757,5.17332672,144.53,144.51,0.7090464]